bitfinex-derivatives/quotes_ETHF0:USTF0_20250626
["timestamp","ask_amount","ask_price","bid_price","bid_amount"]
[1750901059406,0.82507,2422.5,2422.3,6.482]
[1750901060308,0.82505,2422.6,2422.3,7.30712]
[1750901060804,4.70101,2422.7,2422.4,0.82509]
[1750901061104,0.82503,2422.6,2422.3,7.3071]
[1750901062106,0.82503,2422.6,2422.3,10.5149]
[1750901062298,0.82503,2422.6,2422.3,7.3071]
[1750901062593,3.876,2422.7,2422.3,7.3071]
[1750901062594,4.70102,2422.7,2422.4,0.82509]
[1750901063307,3.876,2422.7,2422.5,0.82504]
[1750901063811,3.2078,2422.7,2422.6,0.6793]
[1750901064105,4.03279,2422.7,2422.6,0.6793]
[1750901065007,3.2078,2422.7,2422.6,0.6793]
[1750901065308,4.03279,2422.7,2422.6,0.6793]
[1750901066100,3.2078,2422.7,2422.6,0.6793]
[1750901066404,0.82498,2422.8,2422.6,0.6793]
[1750901067400,0.82499,2422.7,2422.6,0.6793]
[1750901067703,3.9139,2423.0,2422.6,0.6793]
[1750901067704,0.82493,2422.9,2422.6,0.6793]
[1750901067896,4.03271,2423.0,2422.8,2.69846023]
[1750901068098,1.03899723,2422.9,2422.8,2.69846023]
[1750901068301,1.03899723,2422.9,2422.8,4.03776023]
[1750901070105,1.03899723,2422.9,2422.8,4.86272023]
[1750901070306,3.2078,2423.0,2422.9,0.82492]
[1750901070506,1.03910218,2423.0,2422.9,2.16822]
[1750901070903,0.82483,2423.2,2423.0,0.82488]
[1750901071107,1.86390858,2423.1,2423.0,0.7117]
[1750901077413,1.86390858,2423.1,2423.0,1.53659]
[1750901078316,1.86390858,2423.1,2423.0,0.7117]
[1750901079417,3.73750881,2423.1,2422.7,0.7288]
[1750901079717,4.24684858,2423.0,2422.6,7.29701]
[1750901080016,0.82499,2422.7,2422.6,7.29701]
[1750901080315,0.82499,2422.7,2422.6,6.472]
[1750901084616,6.94572695,2422.7,2422.4,0.6778]
[1750901084812,0.82506,2422.5,2422.4,0.6778]
[1750901085712,3.2078,2422.7,2422.4,0.6778]
[1750901085911,1.03937318,2422.6,2422.4,0.6778]
[1750901086110,0.82506,2422.5,2422.4,0.6778]
[1750901090321,0.8252,2422.1,2422.0,3.2078]
[1750901090519,0.82526,2421.9,2421.8,1.4182]
[1750901091622,0.82526,2421.9,2421.8,0.7]
[1750901092121,0.82533,2421.7,2421.6,9.6798]
[1750901092622,0.82533,2421.7,2421.6,3.2078]
[1750901093421,0.82537,2421.6,2421.5,1.3929]
[1750901095427,0.82535,2421.7,2421.5,1.3929]
[1750901096024,0.82534,2421.7,2421.5,1.3929]
[1750901097236,4.03312,2421.8,2421.5,1.3929]
[1750901097426,4.03312,2421.8,2421.5,4.91675023]
[1750901097728,0.82526,2421.9,2421.7,2.69846023]
[1750901098119,1.51075,2422.0,2421.7,3.52377023]
[1750901098326,1.51075,2422.0,2421.8,1.4529]
[1750901098734,0.82526,2421.9,2421.8,1.4529]
[1750901099031,0.82526,2421.9,2421.7,2.69846023]
[1750901099431,1.51075,2422.0,2421.7,3.52379023]
[1750901099635,1.51075,2422.0,2421.7,4.97669023]
[1750901100124,0.82527,2421.9,2421.7,4.97669023]
[1750901100429,1.51075,2422.0,2421.7,4.15136023]
[1750901100630,1.51075,2422.0,2421.8,1.3839]
[1750901100830,0.82525,2422.0,2421.8,1.3839]
[1750901101028,0.82525,2422.0,2421.8,2.20919]
[1750901101230,0.82525,2422.0,2421.9,0.7106]
[1750901101425,4.03303,2422.1,2421.9,0.7106]
[1750901101624,3.2078,2422.7,2422.0,3.2078]
[1750901101932,3.2078,2422.7,2422.3,2.69846023]
[1750901102118,0.82504,2422.6,2422.4,0.82509]
[1750901102321,3.2078,2422.7,2422.3,0.82511]
[1750901102322,0.82506,2422.5,2422.3,0.82511]
[1750901102525,0.82505,2422.6,2422.3,0.82511]
[1750901102719,0.82506,2422.5,2422.3,0.82511]
[1750901102930,0.82506,2422.5,2422.3,1.53571]
[1750901103132,3.2078,2422.7,2422.3,1.53571]
[1750901103528,0.82507,2422.5,2422.3,1.53571]
[1750901105429,0.82507,2422.5,2422.3,1.53572]
[1750901106526,0.82506,2422.6,2422.4,0.82509]
[1750901106933,0.82506,2422.5,2422.3,2.9933]
[1750901107129,7.96879023,2422.7,2422.0,3.8723]
[1750901107435,0.82516,2422.3,2422.1,7.2932]
[1750901108127,0.82516,2422.2,2422.1,6.468]
[1750901110135,1.3862,2422.4,2422.0,1.48973]
[1750901110330,0.8252,2422.1,2422.0,0.6645]
[1750901110833,2.7821,2422.4,2422.0,0.82523]
[1750901111029,0.82517,2422.2,2422.0,0.82523]
[1750901111235,0.8252,2422.1,2421.9,4.71534]
[1750901111436,0.8252,2422.1,2422.0,0.82523]
[1750901111637,0.82519,2422.2,2422.0,0.82523]
[1750901112333,2.7821,2422.4,2421.9,6.08874]
[1750901112540,0.82518,2422.2,2421.9,6.08874]
[1750901113240,2.7821,2422.4,2421.9,6.08874]
[1750901113241,0.82521,2422.1,2421.9,6.08874]
[1750901113540,0.82518,2422.2,2421.9,6.08874]
[1750901114145,0.82518,2422.2,2422.0,0.82523]
[1750901114342,0.82515,2422.3,2422.0,3.52369023]
[1750901114539,0.82515,2422.3,2422.0,5.58327023]
[1750901114738,0.82515,2422.3,2422.1,1.3426]
[1750901115336,3.2078,2422.5,2422.2,2.69846023]
[1750901115543,0.82504,2422.6,2422.4,2.69846023]
[1750901116041,0.82504,2422.6,2422.4,4.06126023]
[1750901116441,0.82504,2422.6,2422.4,4.88635023]
[1750901116942,3.2078,2422.9,2422.8,0.82496]
[1750901117134,3.2078,2422.9,2422.6,2.69846023]
[1750901117335,0.82498,2422.8,2422.5,8.5315]
[1750901118345,0.82498,2422.8,2422.5,9.35654]
[1750901118536,1.49648,2422.8,2422.5,9.35654]
[1750901118844,1.49648,2422.8,2422.6,0.82502]
[1750901121148,0.82504,2422.6,2422.4,6.467]
[1750901121653,0.82506,2422.5,2422.4,6.467]
[1750901122243,0.82506,2422.5,2422.4,0.82509]
[1750901122544,0.82506,2422.5,2422.3,1.52322]
[1750901123255,0.82509,2422.4,2422.3,0.6981]
[1750901123649,0.82513,2422.3,2422.2,3.2078]
[1750901125754,3.2078,2422.6,2422.2,3.2078]
[1750901125959,4.6275,2422.6,2422.1,10.03348]
[1750901126154,0.82513,2422.3,2422.1,10.03348]
[1750901127157,0.82513,2422.3,2422.1,9.2083]
[1750901128359,0.82516,2422.2,2422.1,7.8586]
[1750901128563,0.82523,2422.0,2421.9,9.6748]
[1750901130762,0.82521,2422.1,2421.9,9.6748]
[1750901130953,0.82517,2422.2,2422.0,3.52368023]
[1750901131156,0.82517,2422.2,2422.1,0.6653]
[1750901131354,1.86463402,2422.2,2422.1,0.6653]
[1750901131864,0.82517,2422.2,2422.1,0.6653]
[1750901132063,0.82517,2422.2,2422.1,2.1015]
[1750901132660,0.82523,2422.0,2421.9,9.6748]
[1750901134365,0.82523,2422.0,2421.9,3.2078]
[1750901134867,0.82531,2421.8,2421.6,7.95765]
[1750901135367,0.82533,2421.7,2421.6,7.1323]
[1750901135567,0.7004,2421.9,2421.6,7.95765]
[1750901135868,1.52569,2421.9,2421.7,0.82533]
[1750901136868,0.8253,2421.8,2421.6,10.65611023]
[1750901137072,0.8253,2421.8,2421.6,12.11501023]
[1750901137464,0.82533,2421.7,2421.6,8.5912]
[1750901137669,0.82533,2421.7,2421.6,7.1323]
[1750901138470,0.82537,2421.6,2421.5,0.7133]
[1750901138656,0.8254,2421.5,2421.4,0.72]
[1750901138862,1.4001,2421.8,2421.3,3.2078]
[1750901139061,0.82549,2421.3,2421.1,1.4226]
[1750901140074,0.82545,2421.4,2421.1,2.24813]
[1750901140370,3.2078,2421.7,2421.2,2.69846023]
[1750901140571,0.8254,2421.5,2421.4,2.69846023]
[1750901140870,0.82539,2421.6,2421.4,2.69846023]
[1750901141075,0.82539,2421.6,2421.4,4.15696023]
[1750901141271,0.82539,2421.6,2421.5,0.716]
[1750901141776,0.82537,2421.6,2421.5,0.716]
[1750901142662,3.2078,2421.7,2421.5,0.716]
[1750901142871,0.82529,2421.9,2421.6,3.52381023]
[1750901143168,0.82529,2421.9,2421.6,5.64251023]
[1750901143773,0.82531,2421.8,2421.6,5.64251023]
[1750901143973,0.82527,2421.9,2421.6,5.64251023]
[1750901144574,0.82527,2421.9,2421.7,0.82531]
[1750901144778,4.69855,2422.0,2421.8,0.8253]
[1750901144969,4.69855,2422.0,2421.6,4.81716023]
[1750901144970,3.2078,2422.0,2421.9,0.82526]
[1750901146878,3.2078,2422.0,2421.9,1.50816]
[1750901147575,4.03303,2422.0,2421.9,1.50816]
[1750901147777,3.2078,2422.0,2421.9,1.50816]
[1750901148176,0.6637,2422.2,2422.0,0.82522]
[1750901148377,0.6637,2422.2,2422.0,3.52368023]
[1750901148677,1.48888,2422.2,2422.0,3.52368023]
[1750901148877,0.6637,2422.2,2422.1,0.8252]
[1750901149584,1.48888,2422.2,2422.0,4.95428023]
[1750901150075,0.8252,2422.1,2422.0,1.4306]
[1750901150274,0.8252,2422.1,2422.0,2.25583]
[1750901151284,1.48888,2422.2,2422.0,2.25583]
[1750901151680,0.82518,2422.2,2422.0,2.25583]
[1750901151977,0.82518,2422.2,2422.1,1.367]
[1750901152180,1.86388936,2422.2,2422.1,1.367]
[1750901153490,1.86388936,2422.2,2422.0,0.82522]
[1750901153681,0.82518,2422.2,2422.0,0.82522]
[1750901156289,4.03294,2422.3,2421.9,3.38136023]
[1750901156482,4.03294,2422.3,2422.1,3.52364023]
[1750901156984,0.7159,2422.5,2422.1,3.52364023]
[1750901156985,0.7159,2422.5,2422.1,4.22604023]
[1750901157284,0.82506,2422.5,2422.3,3.52357023]
[1750901157480,4.03284,2422.6,2422.3,3.52357023]
[1750901157680,1.03850298,2422.5,2422.4,2.0964]
[1750901157881,4.03284,2422.6,2422.4,2.92149]
[1750901158488,0.82506,2422.5,2422.4,2.0964]
[1750901159583,4.03284,2422.6,2422.4,2.0964]
[1750901159789,3.2078,2422.6,2422.5,3.52352023]
[1750901160090,3.2078,2422.6,2422.5,4.94872023]
[1750901160281,0.6947,2422.9,2422.5,4.94872023]
[1750901160496,0.82494,2422.9,2422.8,2.69846023]
[1750901160785,4.0327,2423.0,2422.8,3.52341023]
[1750901160980,4.0327,2423.0,2422.8,4.24461023]
[1750901161179,3.2078,2423.0,2422.8,5.69701023]
[1750901161385,3.2078,2423.0,2422.9,1.4524]
[1750901161988,3.2078,2423.0,2422.9,2.27732]
[1750901162394,0.6947,2423.1,2422.9,2.27732]
[1750901164086,0.6947,2423.1,2422.8,0.7212]
[1750901164387,2.88849,2423.1,2422.8,1.54614]
[1750901164782,1.51959,2423.1,2422.9,0.82491]
[1750901164989,0.6947,2423.1,2422.9,0.82491]
[1750901165189,1.51956,2423.1,2422.8,5.71360023]
[1750901165390,0.82489,2423.0,2422.8,5.71360023]
[1750901165688,1.51957,2423.1,2422.9,0.82492]
[1750901167894,0.6947,2423.1,2423.0,0.82489]
[1750901168081,1.51956,2423.1,2423.0,0.82489]
[1750901168286,0.6947,2423.1,2422.8,0.7212]
[1750901168687,2.1031,2423.1,2422.8,0.7212]
[1750901168991,2.92797,2423.1,2422.9,0.82492]
[1750901169192,1.51957,2423.1,2422.9,0.82492]
[1750901169693,4.0326,2423.3,2423.0,3.52332023]
[1750901169992,4.0326,2423.3,2423.0,2.69846023]
[1750901170588,4.0326,2423.3,2423.1,0.82485]
[1750901171487,4.0326,2423.3,2423.0,2.69846023]
[1750901171488,3.2078,2423.3,2423.2,0.82482]
[1750901172585,9.58126339,2423.6,2423.0,6.467]
[1750901172586,3.2078,2423.6,2423.0,6.467]
[1750901172792,0.82472,2423.5,2423.3,3.52323023]
[1750901173997,0.82474,2423.5,2423.2,1.50779]
[1750901174297,0.82474,2423.5,2423.3,0.82478]
[1750901174494,3.2078,2423.6,2423.5,0.82472]
[1750901174695,3.2078,2423.6,2423.5,3.52318023]
[1750901175401,3.2078,2423.6,2423.5,4.98268023]
[1750901175695,3.2078,2423.9,2423.7,0.82462]
[1750901176297,3.2078,2423.9,2423.7,3.52308023]
[1750901176802,4.03239,2423.9,2423.7,4.94549023]
[1750901176992,4.03239,2423.9,2423.7,4.12086023]
[1750901177593,4.03239,2423.9,2423.7,4.94550023]
[1750901178402,3.2078,2423.9,2423.8,0.82462]
[1750901178608,3.2078,2423.9,2423.7,4.12086023]
[1750901178807,3.2078,2423.9,2423.8,0.82462]
[1750901180006,3.2078,2423.9,2423.8,2.98172]
[1750901180503,0.7157,2424.1,2423.8,2.98172]
[1750901180806,0.7157,2424.1,2423.8,1.52122]
[1750901180807,0.82455,2424.0,2423.8,1.52122]
[1750901181007,1.54023,2424.1,2423.9,0.82457]
[1750901181703,0.7157,2424.1,2423.8,0.6966]
[1750901181904,1.54023,2424.1,2423.9,0.82456]
[1750901182809,0.7157,2424.1,2423.8,0.6966]
[1750901183113,3.2078,2424.2,2424.1,0.82452]
[1750901183307,0.731,2424.3,2424.2,0.82448]
[1750901183510,3.2078,2424.6,2424.1,0.6636]
[1750901183711,4.76307,2424.9,2424.6,0.82433]
[1750901184016,0.82443,2424.4,2424.2,0.82448]
[1750901184210,0.82433,2424.7,2424.1,3.36206023]
[1750901184414,0.82435,2424.6,2424.4,0.82439]
[1750901184909,2.95073,2424.7,2424.5,0.82438]
[1750901185309,2.95073,2424.7,2424.4,0.82439]
[1750901185516,2.95073,2424.7,2424.5,0.82437]
[1750901185716,0.82435,2424.6,2424.4,0.82439]
[1750901185920,0.82435,2424.6,2424.3,2.69846023]
[1750901185921,2.95072,2424.7,2424.5,0.82438]
[1750901186416,0.82435,2424.6,2424.4,0.82439]
[1750901186720,2.1264,2424.7,2424.5,0.82438]
[1750901187318,2.95072,2424.7,2424.5,0.82438]
[1750901188117,2.95072,2424.7,2424.4,0.82439]
[1750901188414,0.82435,2424.6,2424.4,0.82439]
[1750901189809,0.731,2424.7,2424.3,9.16246023]
[1750901190118,1.55532,2424.7,2424.5,0.82435]
[1750901190614,0.731,2424.7,2424.6,0.82435]
[1750901190815,4.0321,2424.8,2424.6,0.82435]
[1750901191208,0.682,2425.0,2424.8,0.82427]
[1750901191418,0.82424,2424.9,2424.7,3.52275023]
[1750901191724,0.682,2425.0,2424.7,2.69846023]
[1750901191915,4.03199,2425.1,2424.9,3.52270023]
[1750901192113,4.03199,2425.1,2425.0,0.6729]
[1750901192318,4.03199,2425.1,2425.0,1.49711]
[1750901192616,3.2078,2425.1,2425.0,1.49711]
[1750901193013,0.82418,2425.1,2425.0,0.6729]
[1750901193219,0.82416,2425.2,2425.0,1.49711]
[1750901194714,2.6818,2425.4,2425.0,0.6729]
[1750901194918,3.2078,2425.2,2424.7,1.4202]
[1750901195220,0.82428,2424.8,2424.7,6.463]
[1750901195721,0.82426,2424.9,2424.7,7.28731]
[1750901195913,1.49793,2425.0,2424.7,7.28731]
[1750901196114,1.49793,2425.0,2424.8,0.82427]
[1750901196417,1.49794,2425.0,2424.8,0.82427]
[1750901197223,0.6737,2425.0,2424.7,6.463]
[1750901197417,0.82428,2424.8,2424.7,7.28731]
[1750901197721,0.82427,2424.9,2424.7,7.28731]
[1750901198223,0.82428,2424.8,2424.7,6.463]
[1750901198517,0.82428,2424.8,2424.7,7.28731]
[1750901198719,0.82427,2424.9,2424.7,7.28731]
[1750901199016,0.8243,2424.8,2424.6,1.50423]
[1750901199222,0.82428,2424.8,2424.7,6.489]
[1750901201524,1.51706,2424.9,2424.7,7.3133]
[1750901201921,1.49793,2425.0,2424.8,3.52272023]
[1750901202819,0.82428,2424.8,2424.7,7.8523]
[1750901203028,0.82428,2424.8,2424.7,7.31331]
[1750901203224,0.82427,2424.9,2424.7,7.31331]
[1750901203724,0.82427,2424.9,2424.8,0.82428]
[1750901203922,0.82427,2424.9,2424.7,6.489]
[1750901204119,0.82427,2424.9,2424.7,7.31329]
[1750901204520,1.49793,2425.0,2424.8,0.82428]
[1750901205228,1.03887043,2424.9,2424.8,0.82428]
[1750901205524,1.49793,2425.0,2424.8,0.82428]
[1750901207121,0.82424,2424.9,2424.7,7.31329]
[1750901207320,2.69846023,2424.9,2424.6,0.6799]
[1750901207526,0.82431,2424.7,2424.5,7.31237]
[1750901207826,6.2163,2424.8,2424.5,7.31237]
[1750901208023,0.6984,2424.6,2424.5,7.31237]
[1750901212227,1.7404488,2424.6,2424.5,7.31237]
[1750901214133,1.0420488,2424.6,2424.5,7.31237]
[1750901214333,1.04387407,2424.7,2424.6,0.82435]
[1750901214632,1.04387407,2424.7,2424.6,3.52281023]
[1750901214820,1.04387407,2424.7,2424.6,4.86651023]
[1750901215234,1.50205,2424.9,2424.7,0.8243]
[1750901215529,1.50205,2424.9,2424.8,0.666]
[1750901215735,2.54602704,2424.9,2424.8,0.26398652]
[1750901216334,2.54602704,2424.9,2424.6,4.86648023]
[1750901216632,1.86826704,2424.8,2424.6,4.86648023]
[1750901216827,1.04397704,2424.7,2424.6,4.86648023]
[1750901218528,1.50206,2424.9,2424.7,0.82431]
[1750901218729,1.04435493,2424.8,2424.7,0.82431]
[1750901218935,1.04435493,2424.8,2424.7,4.91917023]
[1750901221241,4.7038,2425.1,2424.8,0.82425]
[1750901221535,1.04476776,2425.0,2424.9,4.25590023]
[1750901221734,1.04476776,2425.0,2424.9,5.65230023]
[1750901222136,0.82408,2425.4,2424.9,4.82806023]
[1750901222344,1.04467401,2425.3,2425.2,3.52260023]
[1750901223033,1.04467401,2425.3,2425.2,4.88020023]
[1750901227346,3.2078,2425.5,2425.4,0.82407]
[1750901227538,1.04302268,2425.5,2425.4,3.52253023]
[1750901228044,1.04302268,2425.5,2425.4,11.39623023]
[1750901228833,3.9267,2425.8,2425.4,10.57216023]
[1750901229047,1.04205654,2425.7,2425.5,0.82401]
[1750901229250,4.75066,2425.8,2425.5,0.82401]
[1750901229547,1.04166233,2425.7,2425.4,10.57216023]
[1750901229747,0.82397,2425.7,2425.5,0.82401]
[1750901229942,3.9267,2425.8,2425.4,10.57216023]
[1750901229943,3.9267,2425.8,2425.4,7.8737]
[1750901230145,1.86570532,2425.7,2425.5,0.82404]
[1750901230344,3.9267,2425.8,2425.4,8.69775]
[1750901230345,1.86572532,2425.6,2425.4,8.69775]
[1750901230539,5.3608,2425.8,2425.4,10.57216023]
[1750901230847,7.8495598,2426.1,2425.6,2.69846023]
[1750901231054,1.0412354,2426.0,2425.9,0.82388]
[1750901231250,7.0257098,2426.1,2426.0,0.82387]
[1750901231549,3.2078,2426.2,2426.0,3.52233023]
[1750901231749,3.2078,2426.2,2426.0,9.98633023]
[1750901231948,4.0316,2426.2,2426.0,9.98633023]
[1750901232750,3.2078,2426.2,2426.0,9.98633023]
[1750901232955,3.2078,2426.2,2426.1,0.82384]
[1750901233449,3.2078,2426.2,2426.0,6.464]
[1750901233649,3.2078,2426.2,2426.0,7.28786]
[1750901233852,4.03162,2426.2,2426.0,7.28786]
[1750901234059,4.03162,2426.2,2426.0,6.464]
[1750901234651,0.82384,2426.1,2426.0,6.464]
[1750901234852,4.03162,2426.2,2426.0,7.28786]
[1750901235548,4.03162,2426.2,2426.0,6.464]
[1750901236050,0.82384,2426.1,2426.0,6.464]
[1750901236847,0.82392,2425.9,2425.7,3.2078]
[1750901237043,0.82392,2425.9,2425.8,6.463]
[1750901237249,2.69846023,2426.2,2425.8,6.463]
[1750901237451,1.3262,2426.1,2425.8,6.463]
[1750901237851,0.8239,2425.9,2425.8,6.463]
[1750901240045,0.82394,2425.8,2425.7,3.2078]
[1750901240249,0.82394,2425.8,2425.7,9.6698]
[1750901240842,0.82394,2425.8,2425.7,3.2078]
[1750901241041,0.82394,2425.8,2425.7,9.6698]
[1750901243153,0.82394,2425.8,2425.7,6.462]
[1750901243453,0.82394,2425.8,2425.7,9.6698]
[1750901243950,0.82394,2425.8,2425.7,6.462]
[1750901244251,0.82394,2425.8,2425.7,9.6698]
[1750901244650,0.82389,2426.0,2425.8,0.82393]
[1750901244852,0.82389,2426.0,2425.9,2.69846023]
[1750901245352,0.82394,2425.8,2425.7,12.36826023]
[1750901245547,1.4215,2426.2,2425.7,12.36826023]
[1750901245752,0.82392,2425.9,2425.7,13.19222023]
[1750901246452,0.82394,2425.8,2425.7,13.19222023]
[1750901246648,0.82394,2425.8,2425.7,5.90626023]
[1750901246859,3.09922042,2425.8,2425.0,0.82419]
[1750901247045,0.82421,2425.0,2424.9,2.0942]
[1750901247256,0.82426,2424.9,2424.4,2.69846023]
[1750901247448,0.82436,2424.6,2424.5,6.462]
[1750901247644,4.89186023,2424.9,2424.5,6.462]
[1750901247951,0.82426,2424.9,2424.7,2.69846023]
[1750901248549,0.82425,2424.9,2424.7,2.69846023]
[1750901249361,4.03203,2425.0,2424.7,3.52277023]
[1750901249652,3.2078,2425.3,2424.9,2.69846023]
[1750901249857,3.2078,2425.3,2425.2,2.69846023]
[1750901250057,4.24779636,2425.3,2425.2,2.69846023]
[1750901250256,5.07190636,2425.3,2425.0,5.57395023]
[1750901250458,1.86414636,2425.2,2425.0,0.6655]
[1750901250760,0.82415,2425.2,2425.0,0.6655]
[1750901250965,4.03193,2425.3,2425.0,4.18817023]
[1750901251255,1.04023593,2425.2,2425.0,4.18817023]
[1750901251460,4.03193,2425.3,2425.0,4.18817023]
[1750901251759,1.04034479,2425.2,2425.1,0.82418]
[1750901251955,0.6838,2425.4,2425.0,4.74976023]
[1750901252152,0.82402,2425.6,2425.3,3.52255023]
[1750901252352,1.04091315,2425.5,2425.4,0.6655]
[1750901252556,1.86495315,2425.5,2425.4,0.6655]
[1750901253348,1.04091315,2425.5,2425.4,0.6655]
[1750901255359,1.86495315,2425.5,2425.4,0.6655]
[1750901256060,5.40519,2425.7,2425.5,0.82404]
[1750901256260,1.04105949,2425.6,2425.5,0.82404]
[1750901258064,1.86506949,2425.6,2425.4,1.48955]
[1750901258263,0.82401,2425.6,2425.4,1.48955]
[1750901259367,0.82401,2425.6,2425.5,0.82404]
[1750901259566,1.86478192,2425.6,2425.5,0.82404]
[1750901259962,1.86478192,2425.6,2425.4,1.48955]
[1750901260167,0.82401,2425.6,2425.4,1.48955]
[1750901260663,3.8916,2425.7,2425.5,9.17046023]
[1750901260862,4.71557,2425.7,2425.5,9.99447023]
[1750901261066,4.71557,2425.7,2425.5,11.38737023]
[1750901264365,3.2078,2426.0,2425.5,10.56336023]
[1750901264566,3.2078,2426.3,2425.9,2.69846023]
[1750901264866,0.82384,2426.1,2425.9,2.69846023]
[1750901265066,0.82384,2426.1,2425.9,3.52235023]
[1750901265267,0.82382,2426.2,2426.0,0.82387]
[1750901265467,1.04105748,2426.1,2426.0,0.82387]
[1750901265667,1.86489748,2426.1,2425.9,4.18784023]
[1750901265866,0.82384,2426.1,2425.9,4.18784023]
[1750901266365,0.82382,2426.2,2426.0,0.82387]
[1750901266564,1.04113748,2426.1,2426.0,0.82387]
[1750901266970,1.86498748,2426.1,2425.9,5.52725023]
[1750901267171,0.82385,2426.1,2425.9,5.52725023]
[1750901267869,0.82383,2426.2,2426.0,0.82387]
[1750901268071,1.04083622,2426.1,2426.0,0.82387]
[1750901268969,1.04083622,2426.1,2426.0,2.21407]
[1750901269473,5.15604702,2426.6,2426.0,2.21407]
[1750901269474,3.2078,2426.7,2426.4,0.82371]
[1750901269673,1.04072708,2426.6,2426.5,0.82369]
[1750901270180,1.86439708,2426.6,2426.4,3.52218023]
[1750901270380,1.04072708,2426.5,2426.4,3.52218023]
[1750901272881,1.86442708,2426.5,2426.4,2.69846023]
[1750901273076,1.86442708,2426.5,2426.3,2.21104]
[1750901273278,0.82369,2426.6,2426.4,0.82373]
[1750901275379,0.82369,2426.6,2426.5,0.8237]
[1750901275685,1.86216915,2426.6,2426.4,0.82371]
[1750901275984,0.82367,2426.6,2426.4,0.82371]
[1750901276184,0.82367,2426.6,2426.5,0.8237]
[1750901276481,1.03849973,2426.6,2426.5,0.8237]
[1750901277080,4.75766,2426.7,2426.5,0.8237]
[1750901277481,0.82367,2426.6,2426.5,0.8237]
[1750901277684,0.82367,2426.6,2426.4,3.52218023]
[1750901278382,4.75766,2426.7,2426.5,0.8237]
[1750901278582,4.75766,2426.7,2426.4,2.69846023]
[1750901278783,3.934,2426.7,2426.4,4.04276023]
[1750901278985,3.934,2426.7,2426.6,3.52213023]
[1750901279185,3.2078,2426.7,2426.6,3.52213023]
[1750901279382,3.2078,2426.7,2426.6,4.86643023]
[1750901279887,0.82348,2427.2,2427.0,0.82351]
[1750901280097,3.2078,2428.0,2427.3,0.82341]
[1750901280285,1.4445,2427.8,2427.5,2.69846023]
[1750901280485,0.82327,2427.8,2427.5,2.69846023]
[1750901280891,0.82327,2427.8,2427.6,0.82332]
[1750901281189,3.2078,2428.0,2427.4,4.03117]
[1750901281384,0.7283,2427.7,2427.4,3.2078]
[1750901281591,0.7283,2427.7,2427.4,4.0312]
[1750901281791,0.82333,2427.6,2427.4,3.2078]
[1750901282088,0.82333,2427.6,2427.4,4.03119]
[1750901282285,0.82333,2427.6,2427.4,3.2078]
[1750901282488,0.82333,2427.6,2427.4,4.03118]
[1750901282795,0.82333,2427.6,2427.4,3.2078]
[1750901283792,0.82334,2427.6,2427.4,3.2078]
[1750901283992,1.55161,2427.7,2427.4,4.03119]
[1750901284193,1.55161,2427.7,2427.4,5.47539]
[1750901284390,0.7283,2427.7,2427.5,2.69846023]
[1750901284590,0.7283,2427.7,2427.5,4.80796023]
[1750901284786,0.82333,2427.6,2427.5,4.80796023]
[1750901285494,1.55161,2427.7,2427.5,5.63132023]
[1750901286093,0.82333,2427.6,2427.5,4.80796023]
[1750901286294,0.82333,2427.6,2427.5,11.27596023]
[1750901286488,1.55162,2427.7,2427.5,12.09932023]
[1750901286689,0.82333,2427.6,2427.5,11.27596023]
[1750901287083,0.7283,2427.7,2427.5,11.27596023]
[1750901287282,0.82336,2427.5,2427.4,3.2078]
[1750901287595,0.82336,2427.5,2427.4,9.6758]
[1750901287897,3.42676023,2427.7,2427.4,12.37426023]
[1750901287898,0.698,2427.6,2427.4,12.37426023]
[1750901288088,0.82334,2427.6,2427.4,13.19764023]
[1750901288394,0.82334,2427.6,2427.5,2.1303]
[1750901289399,0.82334,2427.6,2427.5,2.95366]
[1750901290094,0.7283,2427.7,2427.5,2.95366]
[1750901290299,1.55162,2427.7,2427.5,2.95366]
[1750901291406,2.1418,2428.1,2427.6,3.52179023]
[1750901291703,0.6946,2428.0,2427.6,2.69846023]
[1750901291904,0.6946,2428.0,2427.6,3.52179023]
[1750901292105,0.6946,2428.0,2427.6,5.66109023]
[1750901292299,0.82327,2427.8,2427.6,5.66109023]
[1750901292906,0.82327,2427.8,2427.7,0.82329]
[1750901293108,9.33645,2428.2,2427.7,0.82329]
[1750901293405,1.03249395,2428.1,2427.8,1.4359]
[1750901293603,0.82325,2427.9,2427.8,1.4359]
[1750901293804,0.82328,2427.8,2427.6,4.22518023]
[1750901294006,0.82329,2427.7,2427.6,3.40186023]
[1750901294206,0.82329,2427.7,2427.6,4.83776023]
[1750901294409,0.82329,2427.7,2427.6,5.66109023]
[1750901294602,0.82328,2427.8,2427.6,5.66109023]
[1750901295407,1.03338652,2427.7,2427.6,5.66109023]
[1750901295704,1.03338652,2427.7,2427.6,4.22519023]
[1750901296303,3.2078,2428.2,2428.0,0.82317]
[1750901296605,0.705,2428.4,2428.1,2.69846023]
[1750901296798,1.03331866,2428.3,2428.1,2.69846023]
[1750901296994,1.03331866,2428.2,2428.1,3.52161023]
[1750901297198,1.85643866,2428.2,2428.1,3.52161023]
[1750901297501,1.85646866,2428.2,2428.0,7.29019]
[1750901297703,1.03331866,2428.1,2428.0,7.29019]
[1750901297904,1.85647866,2428.1,2428.0,7.29019]
[1750901298106,1.85647866,2428.1,2428.0,6.467]
[1750901298310,1.03331866,2428.1,2428.0,7.29019]
[1750901298913,1.85647866,2428.1,2428.0,6.467]
[1750901299809,1.03331866,2428.1,2428.0,6.467]
[1750901300011,1.85647866,2428.1,2428.0,6.467]
[1750901300704,1.85647866,2428.1,2428.0,7.29019]
[1750901300910,1.03331866,2428.1,2428.0,7.29019]
[1750901301311,1.85647866,2428.1,2428.0,6.467]
[1750901301510,1.03331866,2428.1,2428.0,7.29019]